Workbook

Sheet 成绩
A1: 贵州能投产业集团有限公司招聘总成绩名单
A2: 序号 | B2: 姓名 | C2: 岗位 | D2: 笔试分数 | E2: 折算分数 | F2: 面试分数 | G2: 折算分数 | H2: 总成绩 | I2: 名次 | J2: 是否进入下一环节 | K2: 备注
A3: =ROW()-2 -> 1 | B3: 熊兵 | C3: 党委办公室主任 | D3: 77 | E3: =ROUND((D3/1.5)*40%,2) -> 20.53 | F3: 77.33 | G3: =ROUND(F3*60%,2) -> 46.4 | H3: =E3+G3 -> 66.93 | I3: =RANK(H3,$H$3:$H$5) -> 1 | J3: 是
A4: =ROW()-2 -> 2 | B4: 赵宏登 | C4: 党委办公室主任 | D4: 59 | E4: 15.73 | F4: 76.33 | G4: 45.8 | H4: 61.53 | I4: =RANK(H4,$H$3:$H$5) -> 2 | J4: 否
A5: 3 | B5: 张浩 | C5: 党委办公室主任 | D5: 64 | E5: 17.07 | F5: 55 | G5: 33 | H5: 50.07 | I5: =RANK(H5,$H$3:$H$5) -> 3 | J5: 否
A6: 4 | B6: 周登梅 | C6: 党建工作员 | D6: 77 | E6: 20.53 | F6: 83.4 | G6: 50.04 | H6: 70.57 | I6: =RANK(H6,$H$6:$H$8) -> 1 | J6: 是
A7: 5 | B7: 韦飞龙 | C7: 党建工作员 | D7: 79 | E7: 21.07 | F7: 72.4 | G7: 43.44 | H7: 64.51 | I7: =RANK(H7,$H$6:$H$8) -> 2 | J7: 否
A8: 6 | B8: 余亚东 | C8: 党建工作员 | D8: 78 | E8: 20.80 | G8: 0 | H8: 20.8 | J8: 否 | K8: 缺考
A9: 7 | B9: 李安安 | C9: 资产管理员 | D9: 96 | E9: 25.60 | F9: 54.4 | G9: 32.64 | H9: 58.24 | I9: =RANK(H9,$H$9:$H$15) -> 1 | J9: 否
A10: 8 | B10: 王治庭 | C10: 资产管理员 | D10: 80 | E10: 21.33 | F10: 54.8 | G10: 32.88 | H10: 54.21 | I10: 2 | J10: 否
A11: 9 | B11: 李丹 | C11: 资产管理员 | D11: 70 | E11: 18.67 | F11: 58 | G11: 34.8 | H11: 53.47 | I11: 3 | J11: 否
A12: 10 | B12: 罗好 | C12: 资产管理员 | D12: 81 | E12: 21.60 | F12: 52.2 | G12: 31.32 | H12: 52.92 | I12: 4 | J12: 否
A13: 11 | B13: 肖霄 | C13: 资产管理员 | D13: 70 | E13: 18.67 | F13: 54 | G13: 32.4 | H13: 51.07 | I13: 5 | J13: 否
A14: =ROW()-2 -> 12 | B14: 彭颖雪 | C14: 资产管理员 | D14: 75 | E14: 20.00 | F14: 51.6 | G14: 30.96 | H14: 50.96 | I14: 6 | J14: 否
A15: 13 | B15: 黄玲玲 | C15: 资产管理员 | D15: 70 | E15: 18.67 | G15: 0 | H15: 18.67 | J15: 否 | K15: 缺考
A16: 14 | B16: 屠定益 | C16: 后勤工作员 | D16: 85 | E16: 22.67 | F16: 75.8 | G16: 45.48 | H16: 68.15 | I16: =RANK(H16,$H$16:$H$19) -> 1 | J16: 是
A17: 15 | B17: 罗品瑶 | C17: 后勤工作员 | D17: 86 | E17: 22.93 | F17: 65.2 | G17: 39.12 | H17: 62.05 | I17: =RANK(H17,$H$16:$H$19) -> 2 | J17: 否
A18: 16 | B18: 杨秀洪 | C18: 后勤工作员 | D18: 85 | E18: 22.67 | F18: 54 | G18: 32.4 | H18: 55.07 | I18: =RANK(H18,$H$16:$H$19) -> 3 | J18: 否
A19: 17 | B19: 李玉峰 | C19: 后勤工作员 | D19: 87 | E19: 23.20 | F19: 52.6 | G19: 31.56 | H19: 54.76 | I19: =RANK(H19,$H$16:$H$19) -> 4 | J19: 否
A20: 18 | B20: 李宝 | C20: 人力资源部工作员 | D20: 75.5 | E20: 20.13 | F20: 88 | G20: 52.8 | H20: 72.93 | I20: =RANK(H20,$H$20:$H$27) -> 1 | J20: 是
A21: 19 | B21: 杨汉佳 | C21: 人力资源部工作员 | D21: 77 | E21: 20.53 | F21: 87.17 | G21: 52.3 | H21: 72.83 | I21: =RANK(H21,$H$20:$H$27) -> 2 | J21: 是
A22: 20 | B22: 沈贵 | C22: 人力资源部工作员 | D22: 92.5 | E22: 24.67 | F22: 69.83 | G22: 41.9 | H22: 66.57 | I22: 3 | J22: 否
A23: 21 | B23: 张涛 | C23: 人力资源部工作员 | D23: 65.5 | E23: 17.47 | F23: 65.67 | G23: 39.4 | H23: 56.87 | I23: 4 | J23: 否
A24: =ROW()-2 -> 22 | B24: 陈⽞婕 | C24: 人力资源部工作员 | D24: 74.5 | E24: 19.87 | F24: 57.17 | G24: 34.3 | H24: 54.17 | I24: 5 | J24: 否
A25: 23 | B25: 骆科俊 | C25: 人力资源部工作员 | D25: 66 | E25: 17.60 | F25: 60.83 | G25: 36.5 | H25: 54.1 | I25: 6 | J25: 否
A26: 24 | B26: 徐冕娅 | C26: 人力资源部工作员 | D26: 57.5 | E26: 15.33 | F26: 56.83 | G26: 34.1 | H26: 49.43 | I26: 7 | J26: 否
A27: 25 | B27: 韦帆 | C27: 人力资源部工作员 | D27: 52.5 | E27: 14.00 | F27: 58.33 | G27: 35 | H27: 49 | I27: 8 | J27: 否
A28: 26 | B28: 张品贵 | C28: 项目经理 | D28: 72 | E28: 19.20 | F28: 75 | G28: 45 | H28: 64.2 | I28: =RANK(H28,$H$28:$H$30) -> 1 | J28: 是
A29: 27 | B29: 韦朝威 | C29: 项目经理 | D29: 83 | E29: 22.13 | F29: 67.5 | G29: 40.5 | H29: 62.63 | I29: =RANK(H29,$H$28:$H$30) -> 2 | J29: 否
A30: 28 | B30: 许明松 | C30: 项目经理 | D30: 61.5 | E30: 16.40 | F30: 67 | G30: 40.2 | H30: 56.6 | I30: =RANK(H30,$H$28:$H$30) -> 3 | J30: 否
A31: 29 | B31: 段朝成 | C31: 工程师 | D31: 78 | E31: 20.80 | F31: 70.5 | G31: 42.3 | H31: 63.1 | I31: =RANK(H31,$H$31:$H$39) -> 1 | J31: 是
A32: 30 | B32: 邹书林 | C32: 工程师 | D32: 54 | E32: 14.40 | F32: 79 | G32: 47.4 | H32: 61.8 | I32: 2 | J32: 是
A33: 31 | B33: 梁玉洪 | C33: 工程师 | D33: 57 | E33: 15.20 | F33: 76 | G33: 45.6 | H33: 60.8 | I33: 3 | J33: 是
A34: =ROW()-2 -> 32 | B34: 巫金 | C34: 工程师 | D34: 55.5 | E34: 14.80 | F34: 70 | G34: 42 | H34: 56.8 | I34: 4 | J34: 否
A35: 33 | B35: 岑振优 | C35: 工程师 | D35: 68 | E35: 18.13 | F35: 64 | G35: 38.4 | H35: 56.53 | I35: 5 | J35: 否
A36: 34 | B36: 麻仕法 | C36: 工程师 | D36: 58 | E36: 15.47 | F36: 65 | G36: 39 | H36: 54.47 | I36: 6 | J36: 否
A37: 35 | B37: 付鹏翔 | C37: 工程师 | D37: 60 | E37: 16.00 | F37: 63.5 | G37: 38.1 | H37: 54.1 | I37: 7 | J37: 否
A38: 36 | B38: 李鹏飞 | C38: 工程师 | D38: 57 | E38: 15.20 | F38: 62.5 | G38: 37.5 | H38: 52.7 | I38: 8 | J38: 否
A39: 37 | B39: 周开州 | C39: 工程师 | D39: 53 | E39: 14.13 | F39: 61 | G39: 36.6 | H39: 50.73 | I39: 9 | J39: 否 | K39: 面试递补人员
A40: 38 | B40: 饶乃鑫 | C40: 工程师 | D40: 53 | E40: =ROUND((D40/1.5)*40%,2) -> 14.13 | H40: =E40+G40 -> 14.13 | J40: 否 | K40: 自愿放弃面试
A41: 39 | B41: 高凤琴 | C41: 资料员 | D41: 61.5 | E41: =ROUND((D41/1.5)*40%,2) -> 16.40 | F41: 77.67 | G41: =ROUND(F41*60%,2) -> 46.6 | H41: =E41+G41 -> 63 | I41: =RANK(H41,$H$41:$H$43) -> 1 | J41: 是
A42: 40 | B42: 罗铭浩 | C42: 资料员 | D42: 61 | E42: =ROUND((D42/1.5)*40%,2) -> 16.27 | F42: 66.67 | G42: =ROUND(F42*60%,2) -> 40 | H42: =E42+G42 -> 56.27 | I42: =RANK(H42,$H$41:$H$43) -> 2 | J42: 否
A43: 41 | B43: 杨金融 | C43: 资料员 | D43: 62 | E43: =ROUND((D43/1.5)*40%,2) -> 16.53 | F43: 61 | G43: =ROUND(F43*60%,2) -> 36.6 | H43: =E43+G43 -> 53.13 | I43: =RANK(H43,$H$41:$H$43) -> 3 | J43: 否
A44: =ROW()-2 -> 42 | B44: 毛德美 | C44: 融资部工作员 | D44: 61 | E44: =ROUND((D44/1.5)*40%,2) -> 16.27 | F44: 81.6 | G44: =ROUND(F44*60%,2) -> 48.96 | H44: =E44+G44 -> 65.23 | I44: =RANK(H44,$H$44:$H$50) -> 1 | J44: 是
A45: 43 | B45: 周凤 | C45: 融资部工作员 | D45: 54 | E45: =ROUND((D45/1.5)*40%,2) -> 14.40 | F45: 66.8 | G45: =ROUND(F45*60%,2) -> 40.08 | H45: =E45+G45 -> 54.48 | I45: 2 | J45: 否
A46: 44 | B46: 陈建宇 | C46: 融资部工作员 | D46: 57 | E46: =ROUND((D46/1.5)*40%,2) -> 15.20 | F46: 64.2 | G46: =ROUND(F46*60%,2) -> 38.52 | H46: =E46+G46 -> 53.72 | I46: 3 | J46: 否
A47: 45 | B47: 王一博 | C47: 融资部工作员 | D47: 50 | E47: =ROUND((D47/1.5)*40%,2) -> 13.33 | F47: 61 | G47: =ROUND(F47*60%,2) -> 36.6 | H47: =E47+G47 -> 49.93 | I47: 4 | J47: 否
A48: 46 | B48: 刘畅 | C48: 融资部工作员 | D48: 56 | E48: =ROUND((D48/1.5)*40%,2) -> 14.93 | F48: 45.2 | G48: =ROUND(F48*60%,2) -> 27.12 | H48: =E48+G48 -> 42.05 | I48: 5 | J48: 否
A49: 47 | B49: 董晓康 | C49: 融资部工作员 | D49: 52 | E49: =ROUND((D49/1.5)*40%,2) -> 13.87 | G49: =ROUND(F49*60%,2) -> 0 | H49: =E49+G49 -> 13.87 | J49: 否 | K49: 缺考
A50: 48 | B50: 匡小浪 | C50: 融资部工作员 | D50: 47 | E50: =ROUND((D50/1.5)*40%,2) -> 12.53 | G50: =ROUND(F50*60%,2) -> 0 | H50: =E50+G50 -> 12.53 | J50: 否 | K50: 缺考
A51: 49 | B51: 李健华 | C51: 安环企管部经理 | D51: 73 | E51: =ROUND((D51/1.5)*40%,2) -> 19.47 | F51: 62.75 | G51: =ROUND(F51*60%,2) -> 37.65 | H51: =E51+G51 -> 57.12 | I51: =RANK(H51,$H$51:$H$53) -> 1 | J51: 否
A52: 50 | B52: 杨成 | C52: 安环企管部经理 | D52: 71 | E52: =ROUND((D52/1.5)*40%,2) -> 18.93 | F52: 57 | G52: =ROUND(F52*60%,2) -> 34.2 | H52: =E52+G52 -> 53.13 | I52: =RANK(H52,$H$51:$H$53) -> 2 | J52: 否
A53: 51 | B53: 朱鹏 | C53: 安环企管部经理 | D53: 66 | E53: =ROUND((D53/1.5)*40%,2) -> 17.60 | F53: 58.25 | G53: =ROUND(F53*60%,2) -> 34.95 | H53: =E53+G53 -> 52.55 | I53: =RANK(H53,$H$51:$H$53) -> 3 | J53: 否
A54: =ROW()-2 -> 52 | B54: 金孝梅 | C54: 综合管理员 | D54: 82 | E54: =ROUND((D54/1.5)*40%,2) -> 21.87 | F54: 77.6 | G54: =ROUND(F54*60%,2) -> 46.56 | H54: =E54+G54 -> 68.43 | I54: =RANK(H54,$H$54:$H$59) -> 1 | J54: 是
A55: 53 | B55: 李虹妍 | C55: 综合管理员 | D55: 80.5 | E55: =ROUND((D55/1.5)*40%,2) -> 21.47 | F55: 77.6 | G55: =ROUND(F55*60%,2) -> 46.56 | H55: =E55+G55 -> 68.03 | I55: 2 | J55: 是
A56: 54 | B56: 舒适 | C56: 综合管理员 | D56: 92 | E56: =ROUND((D56/1.5)*40%,2) -> 24.53 | F56: 61.8 | G56: =ROUND(F56*60%,2) -> 37.08 | H56: =E56+G56 -> 61.61 | I56: 3 | J56: 否
A57: 55 | B57: 王婷婷 | C57: 综合管理员 | D57: 82 | E57: =ROUND((D57/1.5)*40%,2) -> 21.87 | F57: 64.4 | G57: =ROUND(F57*60%,2) -> 38.64 | H57: =E57+G57 -> 60.51 | I57: 4 | J57: 否
A58: 56 | B58: 黄香渝 | C58: 综合管理员 | D58: 90 | E58: =ROUND((D58/1.5)*40%,2) -> 24.00 | F58: 60.2 | G58: =ROUND(F58*60%,2) -> 36.12 | H58: =E58+G58 -> 60.12 | I58: 5 | J58: 否
A59: 57 | B59: 刘友志 | C59: 综合管理员 | D59: 89 | E59: =ROUND((D59/1.5)*40%,2) -> 23.73 | F59: 59 | G59: =ROUND(F59*60%,2) -> 35.4 | H59: =E59+G59 -> 59.13 | I59: 6 | J59: 否
A60: 58 | B60: 王宏艳 | C60: 战略发展部工作员 | D60: 104 | E60: =ROUND((D60/1.5)*40%,2) -> 27.73 | F60: 81.6 | G60: =ROUND(F60*60%,2) -> 48.96 | H60: =E60+G60 -> 76.69 | I60: =RANK(H60,$H$60:$H$70) -> 1 | J60: 是
A61: 59 | B61: 翟安满 | C61: 战略发展部工作员 | D61: 73 | E61: =ROUND((D61/1.5)*40%,2) -> 19.47 | F61: 63.6 | G61: =ROUND(F61*60%,2) -> 38.16 | H61: =E61+G61 -> 57.63 | I61: =RANK(H61,$H$60:$H$70) -> 2 | J61: 否
A62: 60 | B62: 刘俊伶 | C62: 战略发展部工作员 | D62: 61 | E62: =ROUND((D62/1.5)*40%,2) -> 16.27 | F62: 62.6 | G62: =ROUND(F62*60%,2) -> 37.56 | H62: =E62+G62 -> 53.83 | I62: 3 | J62: 否
A63: 61 | B63: 孙其建 | C63: 战略发展部工作员 | D63: 68 | E63: =ROUND((D63/1.5)*40%,2) -> 18.13 | F63: 59 | G63: =ROUND(F63*60%,2) -> 35.4 | H63: =E63+G63 -> 53.53 | I63: 4 | J63: 否
A64: =ROW()-2 -> 62 | B64: 王颖 | C64: 战略发展部工作员 | D64: 65 | E64: =ROUND((D64/1.5)*40%,2) -> 17.33 | F64: 58.6 | G64: =ROUND(F64*60%,2) -> 35.16 | H64: =E64+G64 -> 52.49 | I64: 5 | J64: 否 | K64: 面试递补人员
A65: 63 | B65: 白奎 | C65: 战略发展部工作员 | D65: 61 | E65: =ROUND((D65/1.5)*40%,2) -> 16.27 | F65: 58.4 | G65: =ROUND(F65*60%,2) -> 35.04 | H65: =E65+G65 -> 51.31 | I65: 6 | J65: 否
A66: 64 | B66: 陈柄龙 | C66: 战略发展部工作员 | D66: 60 | E66: =ROUND((D66/1.5)*40%,2) -> 16.00 | F66: 53.4 | G66: =ROUND(F66*60%,2) -> 32.04 | H66: =E66+G66 -> 48.04 | I66: 7 | J66: 否
A67: 65 | B67: 李佳航 | C67: 战略发展部工作员 | D67: 55 | E67: =ROUND((D67/1.5)*40%,2) -> 14.67 | F67: 52.2 | G67: =ROUND(F67*60%,2) -> 31.32 | H67: =E67+G67 -> 45.99 | I67: 8 | J67: 否
A68: 66 | B68: 张红梅 | C68: 战略发展部工作员 | D68: 65 | E68: =ROUND((D68/1.5)*40%,2) -> 17.33 | H68: =E68+G68 -> 17.33 | J68: 否 | K68: 资格审查未通过
A69: 67 | B69: 孙庆磊 | C69: 战略发展部工作员 | D69: 54 | E69: =ROUND((D69/1.5)*40%,2) -> 14.40 | H69: =E69+G69 -> 14.4 | J69: 否 | K69: 自愿放弃面试
A70: 68 | B70: 穆欢 | C70: 战略发展部工作员 | D70: 54 | E70: =ROUND((D70/1.5)*40%,2) -> 14.40 | G70: =ROUND(F70*60%,2) -> 0 | H70: =E70+G70 -> 14.4 | J70: 否 | K70: 缺考
A71: 69 | B71: 郑维 | C71: 法务工作员 | D71: 90 | E71: 24.00 | F71: 74.8 | G71: 44.88 | H71: 68.88 | I71: =RANK(H71,$H$71:$H$78) -> 1 | J71: 是
A72: 70 | B72: 罗鑫尧 | C72: 法务工作员 | D72: 72 | E72: 19.20 | F72: 81.6 | G72: 48.96 | H72: 68.16 | I72: =RANK(H72,$H$71:$H$78) -> 2 | J72: 是
A73: 71 | B73: 吴远超 | C73: 法务工作员 | D73: 88 | E73: 23.47 | F73: 73.8 | G73: 44.28 | H73: 67.75 | I73: =RANK(H73,$H$71:$H$78) -> 3 | J73: 是
A74: =ROW()-2 -> 72 | B74: 周贵发 | C74: 法务工作员 | D74: 66 | E74: 17.60 | F74: 58 | G74: 34.8 | H74: 52.4 | I74: =RANK(H74,$H$71:$H$78) -> 4 | J74: 否
A75: 73 | B75: 季双成 | C75: 法务工作员 | D75: 63 | E75: 16.80 | F75: 54.8 | G75: 32.88 | H75: 49.68 | I75: =RANK(H75,$H$71:$H$78) -> 5 | J75: 否
A76: 74 | B76: 余大伟 | C76: 法务工作员 | D76: 64 | E76: 17.07 | G76: 0 | H76: 17.07 | J76: 否 | K76: 自愿放弃面试，无面试递补人员
A77: 75 | B77: 成克媛 | C77: 法务工作员 | D77: 57 | E77: 15.20 | G77: 0 | H77: 15.2 | J77: 否 | K77: 缺考
A78: 76 | B78: 周金春 | C78: 法务工作员 | D78: 39 | E78: 10.40 | G78: 0 | H78: 10.4 | J78: 否 | K78: 缺考
A79: 77 | B79: 王健 | C79: 审计主管 | D79: 62 | E79: 16.53 | F79: 74.2 | G79: 44.52 | H79: 61.05 | I79: =RANK(H79,$H$79:$H$81) -> 1 | J79: 是
A80: 78 | B80: 刘繁雄 | C80: 审计主管 | D80: 75 | E80: 20.00 | F80: 61.8 | G80: 37.08 | H80: 57.08 | I80: =RANK(H80,$H$79:$H$81) -> 2 | J80: 否
A81: 79 | B81: 严兵 | C81: 审计主管 | D81: 42 | E81: 11.20 | G81: 0 | H81: 11.2 | J81: 否 | K81: 缺考
A82: 80 | B82: 保正菊 | C82: 审计工作员 | D82: 80 | E82: 21.33 | F82: 77 | G82: 46.2 | H82: 67.53 | I82: =RANK(H82,$H$82:$H$88) -> 1 | J82: 是
A83: 81 | B83: 李涛 | C83: 审计工作员 | D83: 75 | E83: 20.00 | F83: 75 | G83: 45 | H83: 65 | I83: 2 | J83: 是
A84: 82 | B84: 陆林林 | C84: 审计工作员 | D84: 85 | E84: 22.67 | F84: 66.8 | G84: 40.08 | H84: 62.75 | I84: 3 | J84: 否
A85: 83 | B85: 张达 | C85: 审计工作员 | D85: 84 | E85: 22.40 | F85: 63.8 | G85: 38.28 | H85: 60.68 | I85: 4 | J85: 否
A86: 84 | B86: 王若飞 | C86: 审计工作员 | D86: 81 | E86: 21.60 | F86: 62 | G86: 37.2 | H86: 58.8 | I86: 5 | J86: 否
A87: 85 | B87: 赵荣丽 | C87: 审计工作员 | D87: 76 | E87: 20.27 | F87: 61.6 | G87: 36.96 | H87: 57.23 | I87: 6 | J87: 否
A88: 86 | B88: 李浩然 | C88: 审计工作员 | D88: 75 | E88: 20.00 | G88: 0 | H88: 20 | J88: 否 | K88: 缺考
